bitfinex-derivatives/quotes_ETHF0:USTF0_20250620
["timestamp","ask_amount","ask_price","bid_price","bid_amount"]
[1750387639112,6.352,2515.7,2515.6,4.60074006]
[1750387639312,6.352,2515.7,2515.6,5.13422786]
[1750387640004,6.352,2515.7,2515.6,5.13448874]
[1750387640204,6.352,2515.7,2515.6,5.20382655]
[1750387640510,7.14694,2515.7,2515.6,5.20382655]
[1750387641408,7.14694,2515.7,2515.6,2.04745649]
[1750387642702,7.14694,2515.7,2515.6,2.04730335]
[1750387643008,6.352,2515.7,2515.6,2.04730335]
[1750387643508,7.14694,2515.7,2515.6,2.04730335]
[1750387645310,7.14694,2515.7,2515.6,1.25233335]
[1750387645510,7.14694,2515.7,2515.6,0.71873781]
[1750387645712,7.14694,2515.7,2515.6,1.25221086]
[1750387645915,7.14694,2515.7,2515.6,2.04719086]
[1750387646414,7.14694,2515.7,2515.6,2.0471399]
[1750387646707,7.14694,2515.7,2515.6,2.04713992]
[1750387646911,0.79494,2515.8,2515.7,0.79491]
[1750387647100,0.79494,2515.8,2515.7,1.32833211]
[1750387649310,0.79494,2515.8,2515.7,2.58743211]
[1750387650512,0.79494,2515.8,2515.7,1.32833211]
[1750387651211,0.79494,2515.8,2515.7,1.32894897]
[1750387652110,0.79491,2515.9,2515.8,0.79488]
[1750387652415,0.79491,2515.9,2515.8,1.32891897]
[1750387654418,0.79491,2515.9,2515.8,0.53403897]
[1750387654709,0.79491,2515.9,2515.8,1.32894897]
[1750387654913,0.79491,2515.9,2515.8,0.53403897]
[1750387655115,0.79494,2515.8,2515.7,0.79491]
[1750387655407,6.354,2516.0,2515.7,0.60403373]
[1750387655605,0.79491,2515.9,2515.8,1.32957592]
[1750387656216,6.354,2516.0,2515.9,0.79488]
[1750387656403,1.45035,2516.1,2516.0,0.79485]
[1750387656608,1.45035,2516.1,2516.0,4.48524715]
[1750387656915,1.45035,2516.1,2516.0,4.48524661]
[1750387657720,1.45035,2516.1,2516.0,4.48538205]
[1750387658021,1.45035,2516.1,2516.0,5.16058205]
[1750387658520,1.45035,2516.1,2516.0,2.00422199]
[1750387658918,0.79485,2516.1,2516.0,2.00422199]
[1750387659123,7.09281,2516.2,2516.1,0.79482]
[1750387659322,8.12777871,2516.2,2516.1,1.32899199]
[1750387659623,8.12777871,2516.2,2516.1,0.79482]
[1750387659815,1.82977871,2516.2,2516.1,1.33893536]
[1750387660013,1.82977871,2516.2,2516.1,0.54411536]
[1750387660218,0.79482,2516.1,2516.0,1.47004]
[1750387660426,1.83059233,2516.1,2516.0,2.01421069]
[1750387662424,1.83059233,2516.1,2516.0,1.47004]
[1750387662624,1.83059233,2516.1,2516.0,2.01546977]
[1750387664420,1.03577233,2516.1,2516.0,2.01546977]
[1750387664626,7.75828,2516.3,2516.2,0.79479]
[1750387664823,8.79499917,2516.3,2516.2,4.49657983]
[1750387665028,7.75828,2516.3,2516.2,4.49657983]
[1750387665224,0.79475,2516.4,2516.3,0.79473]
[1750387665419,0.79475,2516.4,2516.3,1.33895534]
[1750387665926,0.7947,2516.6,2516.5,0.79467]
[1750387666227,1.83062663,2516.6,2516.5,1.33889093]
[1750387666626,1.03592663,2516.6,2516.5,1.33889093]
[1750387667128,10.30041,2516.8,2516.7,0.79463]
[1750387667336,3.2078,2516.8,2516.7,1.33837582]
[1750387667628,3.2078,2516.8,2516.7,1.33837033]
[1750387667937,0.6849,2517.0,2516.9,0.79457]
[1750387668232,0.6849,2517.0,2516.9,1.33827815]
[1750387668532,1.47945,2517.0,2516.9,1.33730192]
[1750387668832,0.79452,2517.1,2517.0,0.7945]
[1750387669031,0.79452,2517.1,2517.0,1.33723192]
[1750387669234,3.2078,2517.2,2517.1,0.7945]
[1750387669533,3.2078,2517.2,2517.1,4.49255338]
[1750387669826,0.79444,2517.3,2517.2,0.79447]
[1750387670131,0.79444,2517.3,2517.2,1.33611896]
[1750387670930,0.79444,2517.3,2517.2,1.33530525]
[1750387671328,0.79444,2517.3,2517.2,0.54086525]
[1750387671928,0.79447,2517.2,2517.1,0.79449]
[1750387672131,0.79447,2517.2,2517.1,1.33488128]
[1750387672827,0.79447,2517.2,2517.1,0.54039128]
[1750387673231,7.15863006,2517.2,2517.1,0.54039128]
[1750387673435,0.79458,2516.9,2516.8,0.79458]
[1750387673732,0.79458,2516.9,2516.8,1.33499197]
[1750387674636,0.79458,2516.9,2516.8,1.33247737]
[1750387675137,0.79458,2516.9,2516.8,1.33247677]
[1750387676633,0.79458,2516.9,2516.8,1.33228414]
[1750387677032,0.79458,2516.9,2516.8,1.33228431]
[1750387677440,0.79458,2516.9,2516.8,1.33220175]
[1750387677938,1.42066,2517.0,2516.9,0.79457]
[1750387678141,1.42066,2517.0,2516.9,1.33219175]
[1750387678333,0.6261,2517.0,2516.9,1.33219175]
[1750387678528,1.42063,2517.0,2516.9,1.33219175]
[1750387678739,1.42063,2517.0,2516.9,1.33260085]
[1750387679135,0.79452,2517.1,2517.0,0.79453]
[1750387679440,0.79452,2517.1,2517.0,1.33252002]
[1750387679839,0.79452,2517.1,2517.0,1.33252145]
[1750387680737,2.13912,2517.1,2517.0,1.33252145]
[1750387681541,2.13912,2517.1,2517.0,0.53799145]
[1750387681742,2.13912,2517.1,2517.0,1.33252145]
[1750387681944,2.13912,2517.1,2517.0,1.33254623]
[1750387682137,1.3446,2517.1,2517.0,1.33254623]
[1750387682330,4.64949,2517.2,2517.1,0.7945]
[1750387682331,1.44169,2517.2,2517.1,0.7945]
[1750387682636,1.44169,2517.2,2517.1,1.33251623]
[1750387683044,1.44169,2517.2,2517.1,0.7945]
[1750387683247,1.44169,2517.2,2517.1,1.33259475]
[1750387683436,1.44169,2517.2,2517.1,1.33259578]
[1750387683940,0.6472,2517.2,2517.1,1.33259578]
[1750387684146,7.77486,2517.3,2517.1,1.33259578]
[1750387684147,7.77485,2517.3,2517.2,0.79447]
[1750387684344,7.77485,2517.3,2517.2,1.33256578]
[1750387684938,7.77485,2517.3,2517.2,1.3325868]
[1750387687242,7.77485,2517.3,2517.2,0.5381168]
[1750387687649,7.77485,2517.3,2517.2,1.3325868]
[1750387687849,7.77485,2517.3,2517.2,0.5381168]
[1750387688248,0.79447,2517.2,2517.1,0.7945]
[1750387688548,0.79447,2517.2,2517.1,1.33314181]
[1750387688848,0.79447,2517.2,2517.1,0.7945]
[1750387690446,0.7945,2517.1,2517.0,0.06933781]
[1750387690651,0.7945,2517.1,2517.0,0.86386781]
[1750387691649,0.7945,2517.1,2517.0,4.02022787]
[1750387693554,0.7945,2517.2,2517.1,0.79447]
[1750387694254,7.77486,2517.3,2517.2,0.79447]
[1750387694459,8.81521325,2517.3,2517.2,0.79447]
[1750387695254,1.04035325,2517.3,2517.2,3.95083006]
[1750387695551,1.83479325,2517.3,2517.2,3.95083006]
[1750387695850,1.83479325,2517.3,2517.2,0.79447]
[1750387698856,0.7945,2517.2,2517.1,0.79448]
[1750387699056,1.83485325,2517.2,2517.1,0.79448]
[1750387702357,1.83482325,2517.2,2517.1,0.79448]
[1750387705760,0.79453,2517.1,2517.0,0.79451]
[1750387705959,1.45983,2517.1,2517.0,0.79451]
[1750387712562,0.6653,2517.1,2517.0,0.79451]
[1750387712864,1.4598,2517.1,2517.0,0.79451]
[1750387714366,0.6653,2517.1,2517.0,0.79451]
[1750387714964,1.4598,2517.1,2517.0,0.79451]
[1750387715165,1.4598,2517.1,2517.0,0.86384781]
[1750387716369,2.50132069,2517.1,2517.0,0.86384781]
[1750387728178,1.4598,2517.1,2517.0,0.86384781]
[1750387728375,3.8582,2517.5,2517.2,0.79444]
[1750387728577,0.79447,2517.3,2517.2,0.79444]
[1750387728775,1.83591706,2517.3,2517.2,0.79444]
[1750387729583,1.04144706,2517.3,2517.2,1.43764]
[1750387729773,1.83588706,2517.3,2517.2,1.43764]
[1750387729975,1.04144706,2517.3,2517.2,1.43764]
[1750387730367,3.2078,2517.5,2517.4,0.79441]
[1750387730678,3.2078,2517.5,2517.4,3.95077006]
[1750387731269,0.79432,2517.7,2517.6,0.79435]
[1750387731466,0.79432,2517.7,2517.6,3.95071006]
[1750387735285,0.79432,2517.7,2517.6,3.15636006]
[1750387735482,0.79435,2517.6,2517.5,0.79436]
[1750387738276,0.79435,2517.6,2517.5,2.04316]
[1750387738784,0.79435,2517.7,2517.6,0.79432]
[1750387738983,0.79435,2517.7,2517.6,1.41912]
[1750387739783,0.79435,2517.7,2517.6,0.6248]
[1750387740688,0.79438,2517.5,2517.4,3.95075006]
[1750387740887,0.79438,2517.5,2517.4,4.57375006]
[1750387743780,0.79438,2517.5,2517.4,0.623]
[1750387743980,0.79438,2517.5,2517.1,6.39140006]
[1750387743981,0.79444,2517.3,2517.2,7.03545]
[1750387744284,0.79444,2517.3,2517.2,0.79447]
[1750387745085,0.79443,2517.4,2517.3,0.79441]
[1750387746083,1.46276,2517.6,2517.5,0.79438]
[1750387748190,0.7943,2517.8,2517.7,0.79428]
[1750387748392,0.79431,2517.7,2517.6,1.45443]
[1750387748595,0.79435,2517.6,2517.5,0.79435]
[1750387748800,0.79438,2517.5,2517.4,0.86371781]
[1750387750393,3.2078,2517.9,2517.6,0.79435]
[1750387750596,3.2078,2517.9,2517.8,3.95064006]
[1750387751391,0.6408,2518.1,2518.0,0.79422]
[1750387753092,7.03516,2518.2,2518.1,0.79419]
[1750387753291,10.02807042,2518.2,2518.1,0.79419]
[1750387753801,8.99626,2518.2,2518.1,0.79419]
[1750387755197,0.79422,2518.1,2518.0,0.7942]
[1750387756699,0.79422,2518.1,2517.8,7.15844006]
[1750387756700,0.79418,2518.2,2518.1,0.79419]
[1750387757303,0.79422,2518.1,2518.0,0.7942]
[1750387757894,2.08752,2518.1,2518.0,0.7942]
[1750387760495,0.79426,2518.0,2517.9,0.79424]
[1750387760700,2.06206,2518.0,2517.9,0.79424]
[1750387760897,0.79428,2517.9,2517.8,0.79426]
[1750387761096,0.7943,2517.8,2517.7,0.79428]
[1750387761600,2.0621,2517.8,2517.7,0.79428]
[1750387762402,1.2678,2517.8,2517.7,0.79428]
[1750387763399,2.06208,2517.8,2517.7,0.79428]
[1750387764198,1.2678,2517.8,2517.7,0.79428]
[1750387765203,2.06208,2517.8,2517.7,0.79428]
[1750387765502,4.00201,2518.1,2518.0,0.79422]
[1750387765698,5.67683952,2518.1,2518.0,0.79422]
[1750387765900,7.02603952,2518.1,2518.0,0.86355781]
[1750387766104,4.64579,2518.1,2518.0,0.86355781]
[1750387767507,5.99499,2518.1,2518.0,0.86355781]
[1750387769902,7.02099041,2518.1,2518.0,0.86355781]
[1750387770209,5.99499,2518.1,2518.0,0.06933781]
[1750387770396,5.99499,2518.1,2518.0,0.86355781]
[1750387770601,5.02802416,2518.1,2518.0,0.86355781]
[1750387770806,4.00199,2518.1,2518.0,0.86355781]
[1750387771003,7.15835006,2518.1,2518.0,0.06933781]
[1750387771202,9.481891,2518.1,2518.0,0.06933781]
[1750387771406,6.32552945,2518.1,2518.0,0.06933781]
[1750387771598,9.48188951,2518.1,2518.0,0.06933781]
[1750387779019,9.48188951,2518.1,2518.0,0.86355781]
[1750387779315,6.32552945,2518.1,2518.0,0.06933781]
[1750387779503,5.02802945,2518.1,2518.0,0.86355781]
[1750387782513,5.02802945,2518.1,2518.0,0.06933781]
[1750387783115,5.02802945,2518.1,2518.0,0.86355781]
[1750387788517,4.23383945,2518.1,2518.0,0.86355781]
[1750387788719,1.02603945,2518.1,2518.0,4.01991787]
[1750387789118,1.02603945,2518.1,2518.0,6.56161787]
[1750387789416,3.2078,2518.5,2518.4,0.79409]
[1750387789417,10.23989,2518.5,2518.4,0.79409]
[1750387789620,10.47387966,2518.5,2518.4,0.79409]
[1750387789818,10.47392447,2518.5,2518.4,0.79409]
[1750387790319,10.47392447,2518.5,2518.4,3.95045006]
[1750387791210,4.23592447,2518.5,2518.4,3.95045006]
[1750387791415,3.2078,2518.5,2518.4,3.95045006]
[1750387791813,3.2078,2518.5,2518.4,4.59415006]
[1750387792317,0.794,2518.7,2518.6,0.79403]
[1750387793524,7.03199,2518.8,2518.7,0.794]
[1750387793709,8.05813491,2518.8,2518.7,0.794]
[1750387796720,7.03199,2518.8,2518.7,0.794]
[1750387797426,48.9718,2519.0,2518.7,0.794]
[1750387797623,49.76571,2519.0,2518.9,0.79393]
[1750387797924,4.23213271,2519.0,2518.9,0.79393]
[1750387798323,5.02603271,2519.0,2518.9,0.79393]
[1750387798523,4.23213271,2519.0,2518.9,0.79393]
[1750387799721,3.2078,2519.0,2518.9,0.79393]
[1750387799922,4.0017,2519.0,2518.9,0.79393]
[1750387800312,7.03186,2519.2,2518.9,0.79393]
[1750387800516,7.03186,2519.2,2519.1,0.79387]
[1750387800727,8.04202324,2519.2,2519.1,0.79387]
[1750387801618,7.24816324,2519.2,2519.1,0.79387]
[1750387801815,6.238,2519.2,2519.1,0.79387]
[1750387802416,7.03184,2519.2,2519.1,0.79387]
[1750387802817,6.238,2519.2,2519.1,0.79387]
[1750387805630,6.238,2519.2,2519.1,0.86320781]
[1750387807122,7.03184,2519.2,2519.1,0.86320781]
[1750387808634,8.31684,2519.2,2519.1,0.06933781]
[1750387808930,8.31684,2519.2,2519.1,0.86320781]
[1750387809333,8.31684,2519.2,2519.1,0.06933781]
[1750387811830,8.31684,2519.2,2519.1,0.86320781]
[1750387812230,8.31684,2519.2,2519.1,0.06933781]
[1750387812534,8.31684,2519.2,2519.1,0.86320781]
[1750387814829,8.31684,2519.2,2519.1,0.06933781]
[1750387815341,8.31684,2519.2,2519.1,0.86320781]
[1750387819548,9.32775582,2519.2,2519.1,0.06933781]
[1750387819844,8.53391582,2519.2,2519.1,0.86320781]
[1750387820347,9.32775582,2519.2,2519.1,0.86320781]
[1750387820642,1.01091582,2519.2,2519.1,0.86320781]
[1750387822042,1.80475582,2519.2,2519.1,0.86320781]
[1750387822548,1.01091582,2519.2,2519.1,0.86320781]
[1750387825044,1.80475582,2519.2,2519.1,0.86320781]
[1750387825647,1.01091582,2519.2,2519.1,0.86320781]
[1750387826049,1.80475582,2519.2,2519.1,0.86320781]
[1750387827550,3.12155582,2519.2,2519.1,0.86320781]
[1750387829955,3.12571041,2519.2,2519.1,0.86320781]
[1750387830555,1.80891041,2519.2,2519.1,0.86320781]
[1750387833056,3.08741041,2519.2,2519.1,0.86320781]
[1750387838261,2.29357041,2519.2,2519.1,0.86320781]
[1750387838460,1.01507041,2519.2,2519.1,0.86320781]
[1750387839867,1.01507041,2519.2,2519.1,4.01956787]
[1750387840467,0.6475,2519.5,2519.4,0.79378]
[1750387840657,5.55061555,2519.6,2519.4,0.79378]
[1750387840658,10.23253,2519.6,2519.5,0.79375]
[1750387841368,9.4388,2519.6,2519.5,0.79375]
[1750387841568,10.23251,2519.6,2519.5,0.79375]
[1750387843873,11.53931,2519.6,2519.5,0.79375]
[1750387844663,10.7456,2519.6,2519.3,0.6896]
[1750387844868,1.42407,2519.5,2519.4,0.79375]
[1750387845067,2.77337,2519.5,2519.4,0.79375]
[1750387845880,1.9796,2519.5,2519.4,0.79375]
[1750387846677,0.6303,2519.5,2519.4,0.79375]
[1750387848878,0.6303,2519.5,2519.4,3.95011006]
[1750387849380,9.4388,2519.6,2519.5,0.79375]
[1750387849773,3.2078,2519.6,2519.5,0.79375]
[1750387850168,9.4378,2519.9,2519.8,0.79365]
[1750387850377,9.4378,2519.9,2519.8,3.95001006]
[1750387850577,10.23142,2519.9,2519.8,3.95001006]
[1750387850777,27.3808,2519.9,2519.8,3.95001006]
[1750387850977,4.00142,2519.9,2519.8,3.95001006]
[1750387851178,3.2078,2519.9,2519.8,3.95001006]
[1750387853576,7.71389,2520.0,2519.9,0.79362]
[1750387853776,8.72022405,2520.0,2519.9,0.79362]
[1750387853975,7.92663405,2520.0,2519.9,0.79362]
[1750387854276,7.71389,2520.0,2519.9,0.79362]
[1750387855386,8.97319,2520.0,2519.9,0.79362]
[1750387856378,0.79359,2520.1,2520.0,0.79356]
[1750387856583,26.65762367,2520.1,2520.0,0.79356]
[1750387857585,27.93732367,2520.1,2520.0,0.79356]
[1750387860591,0.79366,2519.9,2519.8,0.79361]
[1750387861286,0.79367,2519.8,2519.7,0.79366]
[1750387861588,1.42147,2519.8,2519.7,0.79366]
[1750387863790,0.79365,2519.9,2519.8,0.79365]
[1750387865298,0.79368,2519.8,2519.7,0.79366]
[1750387866290,0.79368,2519.8,2519.7,0.79368]
[1750387875594,1.98421,2519.7,2519.1,3.16595806]
[1750387875892,0.79384,2519.3,2519.2,1.43011]
[1750387876284,0.7938,2519.4,2519.3,0.79378]
[1750387877795,0.79381,2519.3,2519.2,1.43012]
[1750387877995,1.42671,2519.3,2519.2,1.43012]
[1750387878187,0.6329,2519.3,2519.2,1.43012]
[1750387878694,1.42671,2519.3,2519.2,1.43012]
[1750387879794,1.42671,2519.3,2519.2,0.6363]
[1750387881093,1.42671,2519.3,2519.2,1.43014]
[1750387883390,1.42671,2519.3,2519.2,0.79384]
[1750387883590,1.98473,2519.1,2518.6,3.16595806]
[1750387883901,0.79414,2518.3,2518.2,0.79412]
[1750387884094,0.79414,2518.3,2518.2,1.43232]
[1750387884295,0.7941,2518.4,2518.3,0.79409]
[1750387885392,2.06478,2518.5,2518.4,0.79409]
[1750387888306,0.79412,2518.4,2518.3,0.79409]
[1750387894810,0.79412,2518.4,2518.3,0.86342781]
[1750387906520,4.00182,2518.7,2518.6,0.79403]
[1750387906822,28.16582,2518.7,2518.6,3.95039006]
[1750387907019,4.00182,2518.7,2518.6,3.95039006]
[1750387911226,4.00182,2518.7,2518.6,4.01972787]
[1750387912727,5.01487754,2518.7,2518.6,4.01972787]
[1750387913226,4.22087754,2518.7,2518.6,4.01972787]
[1750387913525,5.01487754,2518.7,2518.6,4.01972787]
[1750387914328,4.22087754,2518.7,2518.6,4.01972787]
[1750387914526,5.01487754,2518.7,2518.6,4.01972787]
[1750387914720,4.22087754,2518.7,2518.6,4.01972787]
[1750387914928,5.01487754,2518.7,2518.6,4.01972787]
[1750387915330,4.22087754,2518.7,2518.6,4.01972787]
[1750387915832,5.01487754,2518.7,2518.6,4.01972787]
[1750387919837,5.01487754,2518.7,2518.6,3.22569787]
[1750387920041,5.01487754,2518.7,2518.6,4.01972787]
[1750387920536,5.01487754,2518.7,2518.6,0.86336781]
[1750387921742,5.01487754,2518.7,2518.6,0.06933781]
[1750387922340,5.01487754,2518.7,2518.6,0.86336781]
[1750387927043,5.01487754,2518.7,2518.6,0.06933781]
[1750387927339,5.01487754,2518.7,2518.6,0.86336781]
[1750387927731,5.67367754,2518.7,2518.6,0.06933781]
[1750387927933,6.33977754,2518.7,2518.6,0.06933781]
[1750387928335,6.33977754,2518.7,2518.6,0.86336781]
[1750387934942,6.33977754,2518.7,2518.6,0.06933781]
[1750387935341,6.33977754,2518.7,2518.6,0.86336781]
[1750387935543,6.33977754,2518.7,2518.6,0.06933781]
[1750387935745,6.33977754,2518.7,2518.6,0.86336781]
[1750387936047,7.70787754,2518.7,2518.6,0.86336781]
[1750387938438,6.91387754,2518.7,2518.6,0.86336781]
[1750387938741,4.87967754,2518.7,2518.6,4.01972787]
[1750387938939,4.22087754,2518.7,2518.6,4.01972787]
[1750387939840,4.86207754,2518.7,2518.6,0.86336781]
[1750387940043,5.65607754,2518.7,2518.6,0.86336781]
[1750387941345,4.86207754,2518.7,2518.6,0.86336781]
[1750387945845,5.65607754,2518.7,2518.6,0.86336781]
[1750387946653,6.94547754,2518.7,2518.6,0.86336781]
[1750387948751,6.94547754,2518.7,2518.6,0.06933781]
[1750387948951,6.94547754,2518.7,2518.6,0.86336781]
[1750387949548,6.15147754,2518.7,2518.6,0.86336781]
[1750387950247,6.94547754,2518.7,2518.6,0.86336781]
[1750387951053,6.15147754,2518.7,2518.6,0.86336781]
[1750387951657,6.94547754,2518.7,2518.6,0.86336781]
[1750387952154,6.15147754,2518.7,2518.6,0.86336781]
[1750387952349,4.22087754,2518.7,2518.6,0.86336781]
[1750387952854,4.22087754,2518.7,2518.6,1.52126781]
[1750387954155,5.01487754,2518.7,2518.6,1.52126781]
[1750387954857,6.39777754,2518.7,2518.6,1.52126781]
[1750387955053,6.39777754,2518.7,2518.6,0.06933781]
[1750387955655,6.39777754,2518.7,2518.6,0.86336781]
[1750387956855,0.7941,2518.5,2518.4,0.79407]
[1750387957249,1.80717754,2518.5,2518.4,0.79407]
[1750387957450,3.19007754,2518.5,2518.4,0.79407]
[1750387958358,1.01307754,2518.5,2518.4,0.79407]
[1750387958653,7.65484,2518.6,2518.5,0.79406]
[1750387958855,8.67450749,2518.6,2518.5,0.79406]
[1750387960459,1.66346749,2518.6,2518.5,0.79406]
[1750387960756,2.45749749,2518.6,2518.5,0.79406]
[1750387960963,1.66346749,2518.6,2518.5,0.79406]
[1750387961257,2.45749749,2518.6,2518.5,0.79406]
[1750387962563,1.66346749,2518.6,2518.5,0.79406]
[1750387963267,2.45749749,2518.6,2518.5,0.79406]
[1750387964163,1.66346749,2518.6,2518.5,0.79406]
[1750387964362,2.45749749,2518.6,2518.5,0.79406]
[1750387969363,0.79407,2518.5,2518.4,0.79407]
[1750387970461,0.79409,2518.4,2518.3,0.79411]
[1750387970854,0.79409,2518.4,2518.3,3.31723068]
[1750387974164,0.79409,2518.5,2518.4,0.79406]
[1750387974364,0.79409,2518.5,2518.4,3.31718068]
[1750387974866,1.81398241,2518.5,2518.4,3.94728229]
[1750387975367,0.79409,2518.5,2518.4,3.94728229]
[1750387976363,0.79409,2518.5,2518.4,0.79406]
[1750387976564,0.79409,2518.4,2518.3,3.94733229]
[1750387985171,0.79409,2518.4,2518.3,4.0166701]
[1750387996890,0.79409,2518.4,2518.3,3.38627543]
[1750388001092,0.79409,2518.4,2518.3,0.86344781]
[1750388001293,0.79409,2518.4,2518.3,3.38627543]
[1750388002789,0.79409,2518.5,2518.4,0.79406]
[1750388002989,1.81501309,2518.5,2518.4,0.79406]
[1750388003187,1.81501309,2518.5,2518.4,3.31688762]
[1750388007597,1.02092309,2518.5,2518.4,3.31688762]
[1750388007800,0.79405,2518.6,2518.5,0.79406]
[1750388008098,1.02102389,2518.6,2518.5,3.96728762]
[1750388008299,1.02102389,2518.6,2518.5,4.61118762]
[1750388008499,1.02102389,2518.6,2518.5,2.08836]
[1750388009400,1.81505389,2518.6,2518.5,2.08836]
[1750388013507,0.79403,2518.6,2518.5,2.08836]
[1750388014000,0.79396,2518.9,2518.8,0.79393]
[1750388014205,1.81361623,2518.9,2518.8,0.79393]
[1750388014595,0.79397,2518.8,2518.7,2.52282762]
[1750388014796,0.79403,2518.6,2518.5,1.9168]
[1750388015394,0.79403,2518.6,2518.1,6.38379469]
[1750388015395,1.98528,2518.4,2517.9,5.69882231]
[1750388015595,0.79425,2517.9,2517.8,9.52008762]
[1750388015801,0.79425,2517.9,2517.8,3.31708762]
[1750388016405,1.98539,2518.2,2517.9,0.79423]
[1750388016406,0.79424,2518.0,2517.9,0.79423]
[1750388016598,0.79424,2518.0,2517.9,3.31705762]
[1750388018705,1.98535,2518.3,2517.8,0.79426]
[1750388018706,0.79428,2517.9,2517.8,0.79426]
[1750388020306,0.79428,2517.8,2517.7,7.15709673]
[1750388022008,0.79422,2518.0,2517.9,0.79423]
[1750388024210,0.79426,2518.0,2517.9,0.79422]
[1750388025006,3.2078,2518.1,2517.7,8.34860673]
[1750388025207,0.79418,2518.2,2518.1,0.79419]
[1750388029713,0.79418,2518.2,2518.1,0.86352781]
[1750388033213,0.79418,2518.2,2518.1,0.06933781]
[1750388033612,1.81778261,2518.2,2518.1,0.06933781]
[1750388034112,0.79418,2518.2,2518.1,0.06933781]
[1750388034312,1.81772063,2518.2,2518.1,0.06933781]
[1750388038816,5.02552063,2518.2,2518.1,0.06933781]
[1750388039814,1.81772063,2518.2,2518.1,0.06933781]
[1750388040122,5.02552063,2518.2,2518.1,0.06933781]
[1750388042318,4.00198,2518.2,2518.1,0.06933781]
[1750388043518,0.79418,2518.2,2518.1,0.06933781]
[1750388043820,4.00198,2518.2,2518.1,0.06933781]
[1750388045225,5.02801513,2518.2,2518.1,0.06933781]
[1750388046727,5.02801513,2518.2,2518.1,0.86352781]
[1750388046928,5.02801513,2518.2,2518.1,0.06933781]
[1750388051929,5.02801513,2518.2,2518.1,0.86352781]
[1750388052223,4.23383513,2518.2,2518.1,0.86352781]
[1750388052928,5.02798513,2518.2,2518.1,0.86352781]
[1750388057339,5.02809471,2518.2,2518.1,0.86352781]
[1750388058338,5.02809471,2518.2,2518.1,1.50292781]
[1750388059734,5.02809471,2518.2,2518.1,0.70873781]
[1750388060535,6.28149471,2518.2,2518.1,0.70873781]
[1750388060930,6.28149471,2518.2,2518.1,1.50292781]
[1750388061134,6.28149471,2518.2,2518.1,0.70873781]
[1750388061933,6.28149471,2518.2,2518.1,1.50292781]
[1750388062236,5.02809471,2518.2,2518.1,1.50292781]
[1750388066843,5.02809471,2518.2,2518.1,0.70873781]
[1750388067342,5.02809471,2518.2,2518.1,1.50292781]
[1750388068343,5.02809471,2518.2,2518.1,0.70873781]
[1750388068543,6.38719471,2518.2,2518.1,0.70873781]
[1750388069243,6.38719471,2518.2,2518.1,1.50292781]
[1750388071947,6.38719471,2518.2,2518.1,0.86352781]
[1750388072439,5.59304471,2518.2,2518.1,0.86352781]
[1750388072945,4.23394471,2518.2,2518.1,4.01775061]
[1750388073336,4.23394471,2518.2,2518.1,4.70465061]
[1750388073642,1.02614471,2518.2,2518.1,4.70465061]
[1750388074741,1.02614471,2518.2,2518.1,4.01775061]
[1750388076245,2.27584471,2518.2,2518.1,4.01775061]
[1750388076444,3.06999471,2518.2,2518.1,0.86352781]
[1750388076747,2.91694471,2518.2,2518.1,0.86352781]
[1750388078446,2.91694471,2518.2,2518.1,4.01775061]
[1750388087450,3.71109471,2518.2,2518.1,0.86352781]
[1750388088251,2.91694471,2518.2,2518.1,0.86352781]
[1750388088955,3.71109471,2518.2,2518.1,0.86352781]
[1750388089452,2.91694471,2518.2,2518.1,0.86352781]
[1750388098248,1.02614471,2518.2,2518.1,4.01775061]
[1750388101057,1.82029471,2518.2,2518.1,0.86352781]
[1750388101258,2.98224471,2518.2,2518.1,0.86352781]
[1750388102157,1.02614471,2518.2,2518.1,4.01775061]
[1750388108762,1.02614471,2518.2,2518.1,0.86352781]
[1750388110562,5.93222,2518.4,2518.3,0.79412]
[1750388110754,6.96135786,2518.4,2518.3,0.79412]
[1750388110950,6.16723786,2518.4,2518.3,0.79412]
[1750388111149,6.96132786,2518.4,2518.3,0.79412]
[1750388113164,6.16723786,2518.4,2518.3,0.79412]
[1750388113564,6.96132786,2518.4,2518.3,0.79412]
[1750388115867,3.75352786,2518.4,2518.3,0.79412]
[1750388118661,2.95943786,2518.4,2518.3,0.79412]
[1750388120068,3.75352786,2518.4,2518.3,0.79412]
[1750388120568,2.95943786,2518.4,2518.3,0.79412]
[1750388121069,2.95943786,2518.4,2518.3,0.86345781]
[1750388121369,3.75352786,2518.4,2518.3,0.86345781]
[1750388121769,2.95943786,2518.4,2518.3,0.86345781]
[1750388123070,2.95770321,2518.4,2518.3,0.86345781]
[1750388123866,5.56974119,2518.9,2518.5,1.98516]
[1750388124067,3.8829,2518.9,2518.8,3.31701275]
[1750388124275,5.229,2518.9,2518.8,3.31701275]
[1750388125071,5.229,2518.9,2518.8,0.79397]
[1750388127162,0.6474,2519.0,2518.9,0.79393]
[1750388127367,3.8602,2519.2,2519.1,0.79387]
[1750388127673,3.8602,2519.2,2519.1,3.94640029]
[1750388128870,3.2078,2519.2,2519.1,3.94640029]
[1750388131673,0.6464,2519.4,2519.3,0.79381]
[1750388132373,4.64682,2519.6,2519.5,0.79375]
[1750388132561,5.30622,2519.6,2519.5,0.79375]
[1750388132975,4.5125,2519.6,2519.5,0.79375]
[1750388133376,5.8928,2519.6,2519.5,0.79375]
[1750388136870,6.175,2519.9,2519.5,3.94628029]
[1750388137066,1.9554,2519.9,2519.8,0.79365]
[1750388137263,1.9554,2519.9,2519.8,4.00145]
[1750388141975,1.9554,2519.9,2519.8,0.79365]
[1750388143178,2.74902,2519.9,2519.8,0.79365]
[1750388143780,1.9554,2519.9,2519.8,0.79365]
[1750388143986,2.74902,2519.9,2519.8,0.79365]
[1750388144685,1.9554,2519.9,2519.8,0.79365]
[1750388145886,2.74902,2519.9,2519.8,0.79365]
[1750388146079,1.9554,2519.9,2519.8,0.79365]
[1750388146279,2.74902,2519.9,2519.8,0.79365]
[1750388147787,1.9554,2519.9,2519.8,0.79365]
[1750388148386,2.74902,2519.9,2519.8,0.79365]
[1750388148588,1.9554,2519.9,2519.8,0.79365]
[1750388150086,2.74902,2519.9,2519.8,0.79365]
[1750388150493,0.79367,2519.8,2519.7,0.79365]
[1750388150690,5.31240029,2519.8,2519.7,0.79365]